Cogmind - Beta 13 @@@ ROGUE MODE // 2024.04.01 @ 08:33:49 Player: Yvonne Result: Destroyed by Y-45 Defender with Beam Rifle Performance ------------- Evolutions (1) 500 Regions Visited (3) 600 Robots Destroyed (78) 390 Value Destroyed (1887) 1887 Prototype IDs (1) 20 Alien Tech Used (0) 0 Bonus (69) 69 TOTAL SCORE: 3466 Bonus ------- High Alert Combat Kills 69 Cogmind --------- Core Integrity 0/400 Matter 281/300 Energy 290/290 System Corruption 5% Temperature Cool (9) Movement Walking (125) Location -9/Storage Parts ------- > --- POWER (2) -------- Light Ion Engine Reinforced Ion Engine > --- PROPULSION (2) --- Improved Aluminum Leg Titanium Leg > --- UTILITY (3) ------ Small Storage Unit Salvage Targeting Computer Improved Targeting Computer > --- WEAPON (2) ------- Mini Grenade Launcher > --- INVENTORY (8) ---- Aluminum Leg Heat Sink Large Matter Pod (150) Visual Processing Unit Signal Interpreter Grenade Launcher Improved Grenade Launcher Peak State ------------ > --- POWER ------------ Ion Engine Improved Ion Engine > --- PROPULSION ------- Cesium-ion Thruster Cesium-ion Thruster > --- UTILITY ---------- Small Storage Unit Salvage Targeting Computer Improved Targeting Computer > --- WEAPON ----------- Beam Rifle Enhanced Autogun > --- INVENTORY -------- Ion Engine Titanium Leg Heat Sink Large Matter Pod Visual Processing Unit Signal Interpreter Mini Grenade Launcher Improved Grenade Launcher [Rating: 21] Favorites ----------- Power Ion Engine Engine Ion Engine Propulsion Aluminum Leg Treads Light Treads Leg Aluminum Leg Wheel Compact Wheel Hover Unit Hover Unit Flight Unit Cesium-ion Thruster Utility Small Storage Unit Device Structural Scanner Storage Small Storage Unit Processor Improved Targeting Computer Protection Medium Armor Plating Weapon Beam Rifle Energy Gun Beam Rifle Energy Cannon Particle Cannon Ballistic Gun Assault Rifle Launcher Improved Grenade Launcher Special Weapon Mining Laser Impact Weapon Maul Build | -11 -10 -9 -9 ------- Run | Yrd Mat Mat Sto Slots Evolved 2 | . . 2 . Power 1 | . . 1 . Propulsion . | . . . . Utility 1 | . . 1 . Weapon . | . . . . Parts Attached 70 | 5 31 24 10 Power 11 | 1 3 4 3 Engine 11 | 1 3 4 3 Core . | . . . . Reactor . | . . . . Propulsion 23 | 2 11 7 3 Treads 2 | . 1 . 1 Leg 14 | 2 7 3 2 Wheel 1 | . . 1 . Hover 1 | . . 1 . Flight 5 | . 3 2 . Utility 14 | . 10 4 . Device 6 | . 5 1 . Storage 5 | . 4 1 . Processor 2 | . . 2 . Hackware . | . . . . Protection 1 | . 1 . . Artifact . | . . . . Weapon 22 | 2 7 9 4 Energy Gun 7 | 1 2 2 2 Energy Cannon 2 | . 2 . . Ballistic Gun 3 | 1 . 2 . Ballistic Cannon . | . . . . Launcher 8 | . 2 4 2 Special Weapon 1 | . 1 . . Impact Weapon 1 | . . 1 . Slashing Weapon . | . . . . Piercing Weapon . | . . . . Special Melee Weapon . | . . . . Unidentified Prototypes 1 | . . 1 . Parts Lost 16 | . 1 10 5 Power 5 | . . 3 2 Propulsion 6 | . . 4 2 Utility . | . . . . Weapon 5 | . 1 3 1 Highest Loss Streak 3 | . 1 3 2 To Critical Strikes . | . . . . Average Slot Usage (%) 92 | . 95 90 89 Engine 16 | . 14 17 18 Treads 1 | . 4 . 3 Leg 16 | . 23 15 4 Flight 2 | . . 1 8 Device 9 | . 12 10 . Storage 12 | . 11 12 11 Processor 8 | . . 9 22 Energy Gun 6 | . 2 7 10 Energy Cannon 1 | . 5 . . Ballistic Gun 5 | . 10 1 8 Launcher 8 | . 8 9 3 Impact Weapon 1 | . . 2 . Naked Turns . | . . . . Heaviest Build 31 | 6 21 31 23 Greatest Support 34 | 20 20 34 30 Greatest Overweight (x) 7 | . 2 6 7 Average Overweight (x) . | . . . 1 Largest Inventory Capacity 25 | 5 25 8 8 Average Capacity 7 | 5 8 8 8 Most Carried 8 | 5 8 8 8 Average Carried 6 | 3 6 7 6 Final Capacity 8 | 5 8 8 8 Final Carried 8 | 4 8 8 7 Class Distribution -------------------- 71% | Mutant 28% | Scavenger-Mutant Dominant Class ---------------- Scavenger-Mutant | -10/Materials Mutant | -9/Materials Mutant | -9/Storage Resources | -11 -10 -9 -9 ----------- Run | Yrd Mat Mat Sto Matter Collected 1670 | 259 440 307 664 Remotely . | . . . . Salvage Created 1841 | 42 441 622 736 Parts 146 | 1 46 47 52 Haulers Intercepted 1 | . 1 . . Recyclers Shooed 4 | . 1 . 3 Parts Field Recycled . | . . . . Retrieved Matter . | . . . . Parts Self-Destructed . | . . . . Prevented . | . . . . Kills | -11 -10 -9 -9 ------- Run | Yrd Mat Mat Sto Combat Hostiles Destroyed 57 | 1 16 23 17 Guns 25 | 1 3 8 13 Cannons 1 | . 1 . . AOE 31 | . 12 15 4 Classes Destroyed 12 | 1 5 4 2 Worker 3 | . . 2 1 Builder 8 | . 3 3 2 Hauler 1 | . 1 . . Recycler 3 | . 1 2 . Mechanic 1 | . . 1 . Operator 1 | . . 1 . Watcher 4 | . 2 1 1 Swarmer 18 | . 9 6 3 Grunt 30 | 1 7 15 7 Brawler 1 | . . . 1 Duelist 1 | . . . 1 Sentry 7 | . . 2 5 Best Kill Streak 13 | 1 13 10 4 Combat Bots Only 8 | 1 8 5 4 Max Kills in Single Turn 4 | 1 4 3 2 Gunslinging . | . . . . Exploded 3 | . 3 2 1 Melee . | . . . . Uniques/NPCs Destroyed . | . . . . Combat | -11 -10 -9 -9 -------- Run | Yrd Mat Mat Sto Hostile Shots Fired 242 | 4 31 111 96 Missed 71 | 2 9 35 25 Damage Taken 2347 | 22 355 1064 906 Core 520 | . 115 140 265 Absorbed by Shields . | . . . . Core Remaining (%) 77 | 100 54 . . Volleys Fired 142 | 3 30 62 47 Largest 2 | 2 2 2 2 Hottest 128 | 60 128 92 86 Shots Fired 228 | 6 47 91 84 Gun 154 | 6 18 54 76 Cannon 12 | . 12 . . Launcher 59 | . 14 37 8 Special 3 | . 3 . . Kinetic 74 | 3 16 20 35 Thermal 75 | 3 15 16 41 Explosive 59 | . 14 37 8 Electromagnetic 20 | . 2 18 . Robot Hit Streak 9 | 5 3 6 9 Robot Miss Streak 5 | . 4 4 5 Penetration Max . | . . . . Secondary Targets . | . . . . Shots Hit Robots 106 | 5 16 29 56 Core Hits 115 | 2 33 51 29 Critical Kills . | . . . . Critical Parts Destroyed . | . . . . Critical Strikes 4 | . . 1 3 Burn 3 | . . . 3 Corrupt 1 | . . 1 . Melee Attacks . | . . . . Impact . | . . . . Slashing . | . . . . Piercing . | . . . . Sneak Attacks . | . . . . Combat Hostiles . | . . . . Follow-up Attacks . | . . . . Damage Inflicted 4700 | 62 1036 2371 1231 Guns 1303 | 62 181 294 766 Cannons 56 | . 56 . . Explosions 3324 | . 798 2067 459 Melee . | . . . . Ramming 17 | . 1 10 6 Kinetic 659 | 29 141 141 348 Thermal 806 | 33 56 299 418 Explosive 3127 | . 798 1870 459 Electromagnetic 91 | . 40 51 . Impact . | . . . . Slashing . | . . . . Piercing . | . . . . Highest Corruption 5 | . . . 5 Average Corruption 4 | . . . 4 Corruption Purged . | . . . . Corruption Blocked . | . . . . Effects 13 | . . . 13 Message Errors 3 | . . . 3 Matter Fused 4 | . . . 4 Heat Flow Errors 1 | . . . 1 Energy Discharges 2 | . . . 2 Data Loss (minor) 1 | . . . 1 Misfires 1 | . . . 1 Weapon Failures 1 | . . . 1 Overload Shots . | . . . . Overflow Damage 73 | . 37 36 . Projectiles . | . . . . Explosions 73 | . 37 36 . Melee . | . . . . Knockbacks . | . . . . Impact . | . . . . Kinetic . | . . . . Secondary . | . . . . Self-Inflicted Damage 465 | . 150 265 50 Shots 16 | . 5 10 1 Rammed 7 | . . 2 5 Targets Rammed 10 | . 1 4 5 Kicked 3 | . 1 2 . Crushed . | . . . . Highest Temperature 288 | 12 192 50 288 Average Temperature 68 | 9 63 15 103 Received Heat Transfer 564 | 12 60 246 246 Effects 1 | . . . 1 Interference 1 | . . . 1 Siege Activations . | . . . . Robots Corrupted . | . . . . Combat Hostiles . | . . . . Parts Fried . | . . . . Impact Corruptions . | . . . . Robots Melted . | . . . . Combat Hostiles . | . . . . Parts Melted 4 | . . . 4 Heat Transferred 1840 | 75 111 359 1295 Parts Sabotaged . | . . . . Parts Stolen . | . . . . Parts Stripped . | . . . . Power Chain Reactions 1 | . . 1 . Alert | -11 -10 -9 -9 ------- Run | Yrd Mat Mat Sto Peak Influence 496 | 20 273 496 489 Initial 146 | . 13 72 146 Average 257 | 10 184 313 333 Maximum Alert Level 2 | . 1 2 2 Low Security (%) 29 | 100 45 14 11 Level 1 51 | . 54 54 56 Level 2 19 | . . 30 31 Level 3 . | . . . . Level 4 . | . . . . Level 5 . | . . . . High Security . | . . . . Max Security . | . . . . Squads Dispatched 10 | . 2 3 5 Investigation 2 | . 1 1 . Extermination . | . . . . Reinforcement 5 | . 1 2 2 Assault . | . . . . Garrison 3 | . . . 3 Intercept . | . . . . Searches Triggered . | . . . . Construction Impeded 2 | . . 2 . Haulers Reinforced . | . . . . Active Scanning Responses . | . . . . Cargo Convoy Interrupts . | . . . . Stealth | -11 -10 -9 -9 --------- Run | Yrd Mat Mat Sto Distress Signals 7 | . 2 1 4 Communications Jammed . | . . . . Distress Signals . | . . . . Times Spotted 79 | 1 27 28 23 Peak Tracking Total 5 | 1 5 4 4 Tactical Retreats 1 | . . 1 . Traps | -11 -10 -9 -9 ------- Run | Yrd Mat Mat Sto Traps Triggered 3 | . . 1 2 Indirectly . | . . . . Trap Hack Attempts . | . . . . Triggered . | . . . . Disarmed . | . . . . Reprogrammed . | . . . . Reused . | . . . . Traps Extracted . | . . . . Installed . | . . . . Triggered . | . . . . Machines | -11 -10 -9 -9 ---------- Run | Yrd Mat Mat Sto Machines Disabled 12 | . 5 5 2 Max in Single Turn 2 | . 2 1 1 Machines Repaired . | . . . . Machines Dismantled . | . . . . Machines Sabotaged . | . . . . Overloaded Fab Kills . | . . . . Hacking | -11 -10 -9 -9 --------- Run | Yrd Mat Mat Sto Machines Accessed 17 | . 7 6 4 Terminals 12 | . 6 5 1 Fabricators . | . . . . Repair Stations 1 | . . . 1 Recycling Units 3 | . 1 1 1 Scanalyzers . | . . . . Garrison Access 1 | . . . 1 Total Hacks 33 | . 14 12 7 Successful 17 | . 6 7 4 Failed 16 | . 8 5 3 Catastrophic 3 | . 1 1 1 Database Lockouts . | . . . . Manual . | . . . . Terminals 23 | . 11 9 3 Fabricators . | . . . . Repair Stations 2 | . . . 2 Recycling Units 7 | . 3 3 1 Scanalyzers . | . . . . Garrison Access 1 | . . . 1 Terminal Hacks 11 | . 4 5 2 Record 11 | . 4 5 2 Fabricator Hacks . | . . . . Repair Station Hacks 2 | . . . 2 Scan Component 1 | . . . 1 Repair 1 | . . . 1 Recycling Unit Hacks 4 | . 2 2 . Process 1 | . . 1 . Report Inventory 2 | . 1 1 . Retrieve Matter 1 | . 1 . . Scanalyzer . | . . . . Garrison Access Hacks . | . . . . Unauthorized Hacks . | . . . . Terminals . | . . . . Fabricators . | . . . . Repair Stations . | . . . . Recycling Units . | . . . . Scanalyzers . | . . . . Garrison Access . | . . . . Data Cores Recovered . | . . . . Used . | . . . . Hacking Detections 9 | . 5 3 1 Full Trace Events 2 | . 1 1 . Feedback Events . | . . . . Feedback Blocked . | . . . . Robot Schematics Acquired . | . . . . Robots Built . | . . . . Authchips . | . . . . Time . | . . . . Total Robot Build Rating . | . . . . Part Schematics Acquired . | . . . . Parts Built . | . . . . Authchips . | . . . . Time . | . . . . Total Part Build Rating . | . . . . Parts Repaired . | . . . . Time 60 | . . . 60 Parts Recycled . | . . . . Recycled Matter 118 | . . 118 . Retrieved Matter 198 | . 198 . . Retrieved Components . | . . . . Parts Scanalyzed . | . . . . Part Schematics Acquired . | . . . . Parts Damaged . | . . . . Bothacking | -11 -10 -9 -9 ------------ Run | Yrd Mat Mat Sto Used RIF Installer . | . . . . Robots Hacked . | . . . . Non-combat . | . . . . Combat . | . . . . Robot Hacks Applied . | . . . . Relay Couplers Released . | . . . . Fabnet Peak Effective % . | . . . . Robots Rewired . | . . . . Allies Hacked . | . . . . Hacks Repelled . | . . . . Allies | -11 -10 -9 -9 -------- Run | Yrd Mat Mat Sto Total Allies . | . . . . Largest Group . | . . . . Highest-Rated Group . | . . . . Highest-Rated Ally . | . . . . Total Orders . | . . . . Ally Attacks . | . . . . Total Damage . | . . . . Kills . | . . . . Allies Corrupted . | . . . . Allies Melted . | . . . . Intel | -11 -10 -9 -9 ------- Run | Yrd Mat Mat Sto Robot Analysis Total . | . . . . Derelict Logs Recovered . | . . . . Drone Launches . | . . . . Drone Recoveries . | . . . . Exploration | -11 -10 -9 -9 ------------- Run | Yrd Mat Mat Sto Turns Passed 4324 | 235 1422 2083 584 Spaces Moved 2547 | 188 882 1240 237 Core 34 | 19 . 13 2 Treads 137 | . 96 . 41 Legs 2104 | 169 781 1055 99 Wheels 91 | . . 91 . Hover 8 | . . 8 . Flight 173 | . 5 73 95 Fastest Speed 50 | 50 117 115 125 Average Speed 147 | 112 141 149 182 Slowest Speed 400 | 120 260 350 400 Overloaded Moves . | . . . . Propulsion Burnouts . | . . . . Robots Hopped . | . . . . Cave-ins Triggered . | . . . . Exploration Rate (%) 42 | 8 85 44 32 Regions Visited 3 Branch Regions 1 Pre-discovered Areas . | . . . . Known Exits Taken . | . . . . Unknown Exits Taken 3 | 1 1 1 . Scrap Searched . | . . . . Spaces Dug 25 | . 2 23 . Terrain Destroyed 459 | . 75 337 47 Melee . | . . . . Projectile 2 | . 2 . . AOE 457 | . 73 337 47 Terrain Rammed . | . . . . Walls Destroyed . | . . . . Machines Disabled . | . . . . Actions | -11 -10 -9 -9 --------- Run | Yrd Mat Mat Sto Total 2895 | 204 1006 1374 311 Wait . | . . . . Move 2544 | 187 881 1239 237 Hop . | . . . . Pick Up 81 | 9 35 29 8 Fast Attach . | . . . . Attach 28 | 5 4 14 5 Detach . | . . . . Swap 42 | . 27 10 5 Drop 48 | . 28 16 4 Fire 142 | 3 30 62 47 Melee . | . . . . Ram 4 | . . 2 2 Kick 3 | . 1 2 . Crush 3 | . . . 3 Escape Stasis . | . . . . Rewire . | . . . . Trap . | . . . . Miscellaneous . | . . . . Route ------- -11/Scrapyard -10/Materials (discovered 4 exits: *Mat x2 / [*Min x2]) -9/Materials (discovered 2 exits: [*Mat] / *Sto) -9/Storage History --------- Turn | Location | Event 2 | -11/Scrapyard | Met Revision 17 91 | -11/Scrapyard | Discovered new exit (range 8) 236 | -11/Scrapyard | Entered Materials 359 | -10/Materials | Build established: Mutant 441 | -10/Materials | Destroyed 8 combat bots 727 | -10/Materials | Build established: Scavenger-Mutant 779 | -10/Materials | Discovered new exit (range 16) 1264 | -10/Materials | Discovered new exit (range 14) 1348 | -10/Materials | Discovered new exit (range 7) 1486 | -10/Materials | Discovered new exit (range 16) 1658 | -10/Materials | Entered another Materials area 1658 | -9/Materials | Evolved 2 slots: Power x1, Utility x1 1794 | -9/Materials | Build established: Mutant 1840 | -9/Materials | Discovered new exit (range 16) 2298 | -9/Materials | Discovered new exit (range 11) 2463 | -9/Materials | Lost 3 parts (1p2w) 3163 | -9/Materials | Lost 3 parts (2n1w) 3741 | -9/Materials | Entered Storage 4112 | -9/Storage | Core integrity fell below 50% 4125 | -9/Storage | Garrison activated, responded to threat 4141 | -9/Storage | Core integrity fell below 20% 4325 | -9/Storage | Destroyed by Y-45 Defender with Beam Rifle Last Messages --------------- K-01 Serf collects debris. U-05 Engineer destroyed. R-06 Scavenger collects Terrain Scanner. G-34 Mercenary destroyed. K-01 Serf collects debris. R-06 Scavenger collects Lgt. Ion Engine. K-01 Serf collects debris. R-06 Scavenger collects Wheel. K-01 Serf collects debris. R-06 Scavenger collects Sml. Laser. Acquired 11 matter. K-01 Serf collects debris. Acquired Aluminum Leg. System corrupted: Matter fused (-9). K-01 Serf collects debris. Acquired 4 matter. R-06 Scavenger collects Heat Sink. K-01 Serf collects debris. Y-45 Defender emerges from the garrison. [Achievement: First Step to Greatness] Map ----- +----------------------------------------------------+ | ???????????????????????????????????????? | | ???????????????????????????????????????? | | ???????????????????????????????????????? | | ???????????????????????????????????????? | | ???????????????????????????????????????? | | ???????????????????????????????????????? | | ???????????????????????????????????????? | | ???????????????????????????????????????? | | ???????????????????????? ????????????? | | ???????????????????????? ????????????? | | ???????????????????????? ????????????? | | ???????????????????????# #???????????? | | +??????????????????????# #???????????? | | #??????????????????????# #???????????? | | ##+##????????????####### #???????????? | | ????????????? #???????????? | | #????????????? #???????????? | | #????????????? #???????????? | | #?????????#### ?"T" #???????????? | | #?????????# ???" #???????????? | | #?????????# ???? ######??????? | | #?????????# ????? ##?????? | | +?????????# #??#####/##### ##????? | | #?????????# #??# o ## #????? | | ####?????????# #??#""" # #?????? | | #?????????# #??#"R @ ## ##????? | | "" ##????????# #??#"" # #????? | | "" T#????????# #?## # ##????? | | "" ########??# ### k # #?????? | | "" # ] #??# r # ##?????? | | "" # #### ### YY ###??????? | | + """ %+ #?## " " ####????????? | | # """ #+###+##### "G" #???????????? | | "### "" # """ #???????????? | | "#?# # ########???????????? | | ##?##"T"# # #??????????????????? | | ????#"""### #??????????????????? | | ????#####?# #??????????????????? | | ??????????# #??????????????????? | | ??????????# #??????????????????? | | ??????????# #??????????????????? | | ??????????###########??????????????????? | | ???????????????????????????????????????? | | ???????????????????????????????????????? | | ???????????????????????????????????????? | | ???????????????????????????????????????? | | ???????????????????????????????????????? | | | | | | | +----------------------------------------------------+ Best States ------------- Heat Dissipation 28 Energy Generation 17 Energy Capacity 415 Matter Stores 300 Matter Capacity 450 Sight Range 16 Terrain Scan Range 14 Terrain Scan Density 10 Evasion (%) 55 Targeting Accuracy 6 Recoil Reduction 1 Salvage Targeting 1 Item Schematics ----------------- None Robot Schematics ------------------ None Fabricated ------------ Nothing Alien Tech Used ----------------- None Achievements -------------- Dramatic Entrance First Step to Greatness Let's See Who's Tougher Librarian Loot Pinata One Hack Too Far Oops Remodeling Risk Taker Storm Trooper Troublemaker Uninvited Guest Universal Adapter Challenges ------------ None Game ------ Seed MultinovaSiegeAnalyzer Manual? 0 Play Time 01:47:14 Cumulative 1.7 hours Start 2024.04.01 @ 06:35:19 End 2024.04.01 @ 08:33:49 Sessions 1 Manual Loads 0 Difficulty Rogue Special Mode None Game No. 1 Rogue 1 Adventurer 0 Explorer 0 Win Type - Total 0 Types 0/0/0/0/0/0/0/0/0 Lore% 1 Gallery% 3 Achievement% 5 Wizard Run 0 Options --------- Layout 0 ASCII 1 Keyboard 0 Movement Arrows Keybinds 0 Fullscreen 1 Font 24/Smallcaps Map View 56x25 Zoom Use 91% Tactical HUD 0 Map Filters NONE Filters NONE Steam 1 RUN: b8c1a570-d3e2-4efc-a8d7-65bb2acbb0cb